[Event "Klubbmästerskap 2025 Hängrond"]
[Site "Linköping, Sweden"]
[Date "2025.04.03"]
[Round "5.6"]
[White "Larsson, Elin"]
[Black "Larsson, Emma 2008"]
[Result "1/2-1/2"]
[TimeControl "90 min + 30 sec/move"]
[WhiteElo "1666"]
[BlackElo "1754"]

1. e4 {[%clk 01:30:57]} {[%emt 00:00:02]} d5 {[%clk 01:30:49]} {[%emt
00:00:12]} 2. exd5 {[%clk 01:31:22]} {[%emt 00:00:05]} Nf6 {[%clk 01:31:18]}
{[%emt 00:00:01]} 3. d4 {[%clk 01:31:06]} {[%emt 00:00:45]} Nxd5 {[%clk
01:31:36]} {[%emt 00:00:13]} 4. c4 {[%clk 01:23:36]} {[%emt 00:07:59]} Nb6
{[%clk 01:31:10]} {[%emt 00:00:56]} 5. Nc3 {[%clk 01:18:48]} {[%emt 00:05:18]}
g6 {[%clk 01:31:06]} {[%emt 00:00:34]} 6. Be3 {[%clk 01:17:51]} {[%emt
00:01:26]} Bg7 {[%clk 01:31:10]} {[%emt 00:00:27]} 7. h3 {[%clk 01:12:59]}
{[%emt 00:05:22]} O-O {[%clk 01:26:04]} {[%emt 00:05:36]} 8. Nf3 {[%clk
01:11:59]} {[%emt 00:01:29]} Bf5 {[%clk 01:19:31]} {[%emt 00:07:02]} 9. Qd2
{[%clk 01:05:09]} {[%emt 00:07:21]} Re8 {[%clk 01:13:06]} {[%emt 00:06:56]} 10.
Be2 {[%clk 00:51:24]} {[%emt 00:14:15]} Nc6 {[%clk 01:04:06]} {[%emt 00:09:29]}
11. g4 {[%clk 00:41:21]} {[%emt 00:10:33]} Bc8 {[%clk 01:02:01]} {[%emt
00:02:35]} 12. O-O-O {[%clk 00:32:22]} {[%emt 00:09:28]} Na5 {[%clk 00:52:35]}
{[%emt 00:09:57]} 13. b3 {[%clk 00:27:42]} {[%emt 00:05:10]} Nc6 {[%clk
00:28:01]} {[%emt 00:25:04]} 14. Rdg1 {[%clk 00:23:10]} {[%emt 00:05:02]} e5
{[%clk 00:19:09]} {[%emt 00:09:22]} 15. d5 {[%clk 00:17:19]} {[%emt 00:06:21]}
Nb4 {[%clk 00:18:15]} {[%emt 00:01:25]} 16. h4 {[%clk 00:12:55]} {[%emt
00:04:52]} e4 {[%clk 00:17:23]} {[%emt 00:01:23]} 17. Nd4 {[%clk 00:11:05]}
{[%emt 00:02:20]} c5 {[%clk 00:14:07]} {[%emt 00:03:47]} 18. dxc6 {[%clk
00:09:04]} {[%emt 00:02:31]} bxc6 {[%clk 00:13:21]} {[%emt 00:01:15]} 19. Kb1
{[%clk 00:04:41]} {[%emt 00:04:54]} Bb7 {[%clk 00:05:38]} {[%emt 00:08:13]} 20.
h5 {[%clk 00:03:38]} {[%emt 00:01:32]} Qf6 {[%clk 00:01:33]} {[%emt 00:04:35]}
21. g5 {[%clk 00:00:59]} {[%emt 00:03:09]} Qe5 {[%clk 00:01:48]} {[%emt
00:00:15]} 22. Rg4 {[%clk 00:00:36]} {[%emt 00:00:52]} c5 {[%clk 00:02:07]}
{[%emt 00:00:12]} 23. Ndb5 {[%clk 00:00:39]} {[%emt 00:00:27]} a6 {[%clk
00:01:45]} {[%emt 00:00:52]} 24. Bf4 {[%clk 00:00:47]} {[%emt 00:00:22]} Qxc3
{[%clk 00:01:50]} {[%emt 00:00:24]} 25. Nxc3 {[%clk 00:01:04]} {[%emt
00:00:13]} Rad8 {[%clk 00:02:12]} {[%emt 00:00:09]} 26. Qc2 {[%clk 00:01:11]}
{[%emt 00:00:22]} Nxc2 {[%clk 00:02:35]} {[%emt 00:00:07]} 27. Kxc2 {[%clk
00:01:33]} {[%emt 00:00:08]} e3 {[%clk 00:02:58]} {[%emt 00:00:07]} 28. Rd1
{[%clk 00:00:55]} {[%emt 00:01:08]} Rxd1 {[%clk 00:00:41]} {[%emt 00:02:46]} 29.
Nxd1 {[%clk 00:00:33]} {[%emt 00:00:52]} exf2 {[%clk 00:01:01]} {[%emt
00:00:10]} 30. Ne3 {[%clk 00:00:36]} {[%emt 00:00:27]} Bd4 {[%clk 00:00:45]}
{[%emt 00:00:47]} 31. Kd2 {[%clk 00:00:43]} {[%emt 00:00:23]} a5 {[%clk
00:00:44]} {[%emt 00:00:31]} 32. hxg6 {[%clk 00:00:38]} {[%emt 00:00:35]}
1/2-1/2